[Event "Torneo Nuevo Centro. Jornada 8"]
[Site "Chess.com"]
[Date "2020.08.07"]
[Round "8"]
[White "Perrot, Fabien "]
[Black "Fitzpatrick Dimas, Kevin"]
[Result "1-0"]
[WhiteElo "1020"]
[BlackElo "886"]
[TimeControl "180+2"]
[EndTime "12:01:46 PDT"]
[Termination "Victoria de InspiredMinds por abandono"]

1. d4 {[%clk 0:03:01.7]} 1... d5 {[%clk 0:02:57]} 2. Nf3 {[%clk 0:02:54.3]} 2...
Nc6 {[%clk 0:02:56.2]} 3. c4 {[%clk 0:02:52]} 3... dxc4 {[%clk 0:02:55.1]} 4. d5
{[%clk 0:02:40]} 4... Nb4 {[%clk 0:02:50.2]} 5. Qa4+ {[%clk 0:02:39.4]} 5... Bd7
{[%clk 0:02:47.5]} 6. Qxb4 {[%clk 0:02:36]} 6... e6 {[%clk 0:02:46.9]} 7. Qxb7
{[%clk 0:02:26]} 7... Bc5 {[%clk 0:02:31.1]} 8. dxe6 {[%clk 0:02:09.7]} 8... Rb8
{[%clk 0:02:31.9]} 9. exd7+ {[%clk 0:01:51.3]} 9... Kxd7 {[%clk 0:02:29.8]} 10.
Qd5+ {[%clk 0:01:47.9]} 10... Bd6 {[%clk 0:02:27.8]} 11. Qxf7+ {[%clk
0:01:40.9]} 11... Ne7 {[%clk 0:02:25.5]} 12. Qxg7 {[%clk 0:01:12.8]} 12... c6
{[%clk 0:02:16]} 13. Bg5 {[%clk 0:00:44.8]} 13... Rg8 {[%clk 0:02:11.7]} 14.
Bxe7 {[%clk 0:00:25.1]} 14... Bxe7 {[%clk 0:02:09.9]} 15. Qxh7 {[%clk
0:00:24.9]} 15... Qf8 {[%clk 0:02:08.8]} 16. Ne5+ {[%clk 0:00:20]} 16... Kd8
{[%clk 0:02:08.1]} 17. Nxc6+ {[%clk 0:00:16.6]} 17... Ke8 {[%clk 0:02:05.6]} 18.
Nxe7 {[%clk 0:00:09.3]} 18... Rg7 {[%clk 0:02:07.5]} 19. Qe4 {[%clk 0:00:06.9]}
19... Rxe7 {[%clk 0:02:07.8]} 20. Qc6+ {[%clk 0:00:06.5]} 20... Kd8 {[%clk
0:02:05.3]} 21. e3 {[%clk 0:00:06.2]} 21... Rc8 {[%clk 0:02:00.7]} 22. Qd5+
{[%clk 0:00:06.4]} 22... Rd7 {[%clk 0:02:00.4]} 23. Qa5+ {[%clk 0:00:07.8]}
23... Rcc7 {[%clk 0:02:00.2]} 24. Bd3 {[%clk 0:00:06.5]} 24... Rd5 {[%clk
0:01:59.7]} 25. Bxc4 {[%clk 0:00:06.6]} 25... Rxa5 {[%clk 0:01:59.4]} 26. O-O
{[%clk 0:00:08]} 26... Rxc4 {[%clk 0:01:59.3]} 27. Nc3 {[%clk 0:00:09.2]} 27...
Qb4 {[%clk 0:01:56.4]} 28. Rfd1+ {[%clk 0:00:09.8]} 28... Kc7 {[%clk 0:01:56.2]}
29. Rd2 {[%clk 0:00:09.1]} 29... Kc6 {[%clk 0:01:51.7]} 30. Rad1 {[%clk
0:00:10.2]} 30... Kb7 {[%clk 0:01:38.7]} 31. Rd7+ {[%clk 0:00:07.7]} 31... Rc7
{[%clk 0:01:38.1]} 32. R7d3 {[%clk 0:00:03.1]} 32... Qxb2 {[%clk 0:01:35.4]} 33.
R3d2 {[%clk 0:00:03.7]} 33... Qxc3 {[%clk 0:01:35.5]} 34. Kf1 {[%clk 0:00:03.5]}
34... Qc4+ {[%clk 0:01:35.5]} 35. Ke1 {[%clk 0:00:04.4]} 35... Rxa2 {[%clk
0:01:35.2]} 36. Rxa2 {[%clk 0:00:04.4]} 36... Qxa2 {[%clk 0:01:35.3]} 37. Rd2
{[%clk 0:00:04.4]} 37... Rc1+ {[%clk 0:01:33.3]} 38. Ke2 {[%clk 0:00:05.8]}
38... Qc4+ {[%clk 0:01:33.6]} 39. Kf3 {[%clk 0:00:05.8]} 39... Qf7+ {[%clk
0:01:31.2]} 40. Ke2 {[%clk 0:00:06.7]} 40... Qh5+ {[%clk 0:01:29]} 41. f3 {[%clk
0:00:07.7]} 41... Qb5+ {[%clk 0:01:26.4]} 42. Kf2 {[%clk 0:00:07.2]} 42... Qf1+
{[%clk 0:01:27.2]} 43. Kg3 {[%clk 0:00:07.2]} 43... Qe1+ {[%clk 0:01:25]} 44.
Rf2 {[%clk 0:00:07]} 44... Qd2 {[%clk 0:01:26.9]} 45. Rxd2 {[%clk 0:00:07.6]}
45... Rc3 {[%clk 0:01:24.6]} 46. Kf2 {[%clk 0:00:07.3]} 46... Rc4 {[%clk
0:01:22.8]} 47. Rb2+ {[%clk 0:00:08]} 47... Ka8 {[%clk 0:01:22.9]} 48. Re2
{[%clk 0:00:05.7]} 48... Rh4 {[%clk 0:01:22.7]} 49. h3 {[%clk 0:00:06.6]} 49...
a5 {[%clk 0:01:21.5]} 50. Ra2 {[%clk 0:00:05.6]} 50... a4 {[%clk 0:01:22.3]} 51.
g3 {[%clk 0:00:05.8]} 51... Rb4 {[%clk 0:01:22.3]} 52. h4 {[%clk 0:00:05.1]}
52... Ka7 {[%clk 0:01:23.3]} 53. Ke2 {[%clk 0:00:05.5]} 53... Ka6 {[%clk
0:01:25.2]} 54. Kd3 {[%clk 0:00:06.8]} 54... Ka5 {[%clk 0:01:27.1]} 55. Kc3
{[%clk 0:00:08.1]} 55... Kb5 {[%clk 0:01:24.4]} 56. Kd2 {[%clk 0:00:08.1]} 56...
Rb3 {[%clk 0:01:23.2]} 57. Kc2 {[%clk 0:00:08.3]} 57... Kb4 {[%clk 0:01:23.2]}
58. Rb2 {[%clk 0:00:08.9]} 1

[Event "Torneo Nuevo Centro. Jornada 8"]
[Site "Chess.com"]
[Date "2020.08.07"]
[Round "8"]
[White "Pedros Viudes, Santiago"]
[Black "Lloret Ramis, Juan José"]
[Result "0-1"]
[WhiteElo "1914"]
[BlackElo "1999"]
[TimeControl "180+2"]
[EndTime "12:01:47 PDT"]
[Termination "Victoria de Amiplim por abandono"]

1. d4 {[%clk 0:03:01.9]} 1... d5 {[%clk 0:02:59.6]} 2. Nf3 {[%clk 0:03:02.8]}
2... e6 {[%clk 0:03:00.1]} 3. Bf4 {[%clk 0:03:03.8]} 3... Nf6 {[%clk 0:03:00.8]}
4. e3 {[%clk 0:03:04.5]} 4... Bd6 {[%clk 0:03:01.6]} 5. Bg3 {[%clk 0:03:05.8]}
5... c5 {[%clk 0:03:02.1]} 6. c3 {[%clk 0:03:06.3]} 6... Qc7 {[%clk 0:03:03.1]}
7. Ne5 {[%clk 0:02:59.3]} 7... Nbd7 {[%clk 0:02:49.9]} 8. f4 {[%clk 0:02:57]}
8... Ne4 {[%clk 0:02:50.7]} 9. Nd2 {[%clk 0:02:55.4]} 9... O-O {[%clk 0:02:27]}
10. Bd3 {[%clk 0:02:25.2]} 10... f5 {[%clk 0:02:18.5]} 11. Bh4 {[%clk
0:02:20.1]} 11... g5 {[%clk 0:01:20.3]} 12. Bxe4 {[%clk 0:02:05.9]} 12... gxh4
{[%clk 0:01:01.9]} 13. Bd3 {[%clk 0:01:45.8]} 13... Nxe5 {[%clk 0:01:02.6]} 14.
fxe5 {[%clk 0:01:46]} 14... Be7 {[%clk 0:01:02.9]} 15. Qh5 {[%clk 0:01:36.1]}
15... Bd7 {[%clk 0:00:55.7]} 16. Nf3 {[%clk 0:01:34.7]} 16... Be8 {[%clk
0:00:54.8]} 17. Qh6 {[%clk 0:01:34.4]} 17... Bg6 {[%clk 0:00:38.3]} 18. Nxh4
{[%clk 0:01:28.9]} 18... Bxh4+ {[%clk 0:00:38.8]} 19. Qxh4 {[%clk 0:01:30.8]}
19... cxd4 {[%clk 0:00:39.2]} 20. exd4 {[%clk 0:01:29.4]} 20... Qb6 {[%clk
0:00:33.2]} 21. O-O-O {[%clk 0:01:22.4]} 21... Rac8 {[%clk 0:00:30.5]} 22. Kb1
{[%clk 0:01:21.4]} 22... a5 {[%clk 0:00:21.6]} 23. g4 {[%clk 0:01:17.8]} 23...
a4 {[%clk 0:00:21.8]} 24. gxf5 {[%clk 0:01:10.2]} 24... a3 {[%clk 0:00:16.7]}
25. Rd2 {[%clk 0:01:02.5]} 25... exf5 {[%clk 0:00:15.4]} 26. Ka1 {[%clk
0:00:50.8]} 26... axb2+ {[%clk 0:00:14]} 27. Rxb2 {[%clk 0:00:48.8]} 27... Qa5
{[%clk 0:00:13.8]} 28. Rg1 {[%clk 0:00:20.2]} 28... Rxc3 {[%clk 0:00:10.7]} 29.
Bb1 {[%clk 0:00:12.6]} 29... Rc6 {[%clk 0:00:07.4]} 30. Rxb7 {[%clk 0:00:10.6]}
30... Qc3+ {[%clk 0:00:07.4]} 31. Rb2 {[%clk 0:00:11.8]} 31... Rb6 {[%clk
0:00:07.8]} 32. Qf2 {[%clk 0:00:11.6]} 32... Rfb8 {[%clk 0:00:05.7]} 33. Rg2
{[%clk 0:00:04.5]} 33... Rxb2 {[%clk 0:00:06.6]} 34. Qxb2 {[%clk 0:00:05.7]}
34... Rxb2 {[%clk 0:00:08.1]} 35. Rxb2 {[%clk 0:00:07.6]} 35... Qxd4 {[%clk
0:00:08.9]} 36. a3 {[%clk 0:00:06.9]} 36... Qxe5 {[%clk 0:00:09.4]} 37. Ka2
{[%clk 0:00:08.8]} 37... f4 {[%clk 0:00:09.8]} 38. a4 {[%clk 0:00:10.2]} 38...
f3 {[%clk 0:00:09.4]} 39. a5 {[%clk 0:00:10.3]} 39... Qc3 {[%clk 0:00:08.6]} 40.
Bxg6 {[%clk 0:00:09.5]} 40... Qxa5+ {[%clk 0:00:07.4]} 41. Kb1 {[%clk
0:00:11.4]} 41... hxg6 {[%clk 0:00:08.4]} 42. Rf2 {[%clk 0:00:12.6]} 42... Qb6+
{[%clk 0:00:08.7]} 0

[Event "Torneo Nuevo Centro. Jornada 8"]
[Site "Chess.com"]
[Date "2020.08.07"]
[Round "8"]
[White "Rabbani Perez, Oumaima "]
[Black "Vicent Lázaro, Elena"]
[Result "1-0"]
[WhiteElo "620"]
[BlackElo "643"]
[TimeControl "180+2"]
[EndTime "12:01:59 PDT"]
[Termination "Victoria de OumaimaMaria por tiempo"]

1. e3 {[%clk 0:03:01.9]} 1... e6 {[%clk 0:02:57.2]} 2. Bd3 {[%clk 0:03:00.4]}
2... c5 {[%clk 0:02:52]} 3. b3 {[%clk 0:02:58.6]} 3... Nc6 {[%clk 0:02:50.5]} 4.
Nf3 {[%clk 0:02:57.7]} 4... Bd6 {[%clk 0:02:49.6]} 5. Bb2 {[%clk 0:02:49.9]}
5... Bb8 {[%clk 0:02:43]} 6. Bxg7 {[%clk 0:02:48.5]} 6... Qc7 {[%clk 0:02:29.9]}
7. Bxh8 {[%clk 0:02:47.9]} 7... Nh6 {[%clk 0:02:29.4]} 8. Be5 {[%clk 0:02:47.5]}
8... Nxe5 {[%clk 0:02:15.6]} 9. Nxe5 {[%clk 0:02:47.3]} 9... Qxe5 {[%clk
0:02:15.1]} 10. Nc3 {[%clk 0:02:40]} 10... f5 {[%clk 0:02:00]} 11. f4 {[%clk
0:02:40]} 11... Qg7 {[%clk 0:01:55.7]} 12. Bb5 {[%clk 0:02:33.6]} 12... Qxg2
{[%clk 0:01:55]} 13. Rf1 {[%clk 0:02:26.4]} 13... Qxh2 {[%clk 0:01:52.8]} 14.
Na4 {[%clk 0:02:12.9]} 14... b6 {[%clk 0:01:51.3]} 15. Nxb6 {[%clk 0:02:09.3]}
15... Bb7 {[%clk 0:01:51.7]} 16. Nxa8 {[%clk 0:02:09.2]} 16... Bxa8 {[%clk
0:01:48.3]} 17. Qe2 {[%clk 0:01:53.8]} 17... Qg2 {[%clk 0:01:50.2]} 18. Qxg2
{[%clk 0:01:52.5]} 18... Bxg2 {[%clk 0:01:48.3]} 19. Rf2 {[%clk 0:01:50.9]}
19... Bc6 {[%clk 0:01:42.1]} 20. d4 {[%clk 0:01:46]} 20... cxd4 {[%clk
0:01:15.9]} 21. Bxc6 {[%clk 0:01:41.4]} 21... dxc6 {[%clk 0:01:14.1]} 22. exd4
{[%clk 0:01:40.8]} 22... Ng4 {[%clk 0:01:13.5]} 23. Re2 {[%clk 0:01:37.1]} 23...
Nf6 {[%clk 0:01:11.2]} 24. Rxe6+ {[%clk 0:01:36.7]} 24... Kf7 {[%clk 0:01:09.3]}
25. Rxc6 {[%clk 0:01:34]} 25... Nd5 {[%clk 0:01:08.8]} 26. Rc8 {[%clk
0:01:29.4]} 26... Bxf4 {[%clk 0:01:07.3]} 27. Ra8 {[%clk 0:01:23]} 27... Nc3
{[%clk 0:00:50.3]} 28. Rxa7+ {[%clk 0:01:21.8]} 28... Kg6 {[%clk 0:00:42.3]} 29.
Ra6+ {[%clk 0:01:18.5]} 29... Kg5 {[%clk 0:00:36.8]} 30. Ra7 {[%clk 0:01:14.9]}
30... h5 {[%clk 0:00:34.4]} 31. Kf2 {[%clk 0:01:11.9]} 31... h4 {[%clk
0:00:33.1]} 32. b4 {[%clk 0:01:07.1]} 32... Ne4+ {[%clk 0:00:31.4]} 33. Kf3
{[%clk 0:01:02.9]} 33... h3 {[%clk 0:00:16.6]} 34. b5 {[%clk 0:01:00.8]} 34...
h2 {[%clk 0:00:18.5]} 35. b6 {[%clk 0:01:01.3]} 35... Nd2+ {[%clk 0:00:16.2]}
36. Kf2 {[%clk 0:00:55.4]} 36... h1=Q {[%clk 0:00:13.8]} 37. Rxh1 {[%clk
0:00:54.8]} 37... Ne4+ {[%clk 0:00:12.4]} 38. Ke1 {[%clk 0:00:54.1]} 38... Ng3
{[%clk 0:00:11.5]} 39. Rg1 {[%clk 0:00:48.5]} 39... Be3 {[%clk 0:00:10.8]} 40.
Rxg3+ {[%clk 0:00:46.9]} 40... Kf4 {[%clk 0:00:11.2]} 41. Rg8 {[%clk 0:00:40.2]}
41... Bxd4 {[%clk 0:00:11]} 42. Ra6 {[%clk 0:00:33.5]} 42... Kf3 {[%clk
0:00:08.6]} 43. b7 {[%clk 0:00:33.1]} 43... Be5 {[%clk 0:00:06.9]} 44. c4 {[%clk
0:00:31.5]} 44... Bc3+ {[%clk 0:00:04.2]} 45. Kd1 {[%clk 0:00:28.2]} 1

[Event "Torneo Nuevo Centro. Jornada 8"]
[Site "Chess.com"]
[Date "2020.08.07"]
[Round "8"]
[White "Gutierrez Marco, Dario"]
[Black "Castellano López, Javier"]
[Result "0-1"]
[WhiteElo "1816"]
[BlackElo "1911"]
[TimeControl "180+2"]
[EndTime "12:02:26 PDT"]
[Termination "Victoria de its_xavi_official por abandono"]

1. e4 {[%clk 0:03:01.9]} 1... c6 {[%clk 0:02:58.2]} 2. d4 {[%clk 0:03:01.2]}
2... d5 {[%clk 0:02:58.6]} 3. e5 {[%clk 0:03:01.9]} 3... Bf5 {[%clk 0:02:57.9]}
4. h4 {[%clk 0:03:02.6]} 4... h5 {[%clk 0:02:58.4]} 5. Bd3 {[%clk 0:03:04.2]}
5... Bxd3 {[%clk 0:02:58.9]} 6. Qxd3 {[%clk 0:03:06.1]} 6... e6 {[%clk
0:02:57.9]} 7. Bg5 {[%clk 0:03:06.7]} 7... Qa5+ {[%clk 0:02:57.6]} 8. Nd2 {[%clk
0:03:06.2]} 8... Qa6 {[%clk 0:02:57.9]} 9. c4 {[%clk 0:03:06.6]} 9... Be7 {[%clk
0:02:55.2]} 10. Ngf3 {[%clk 0:03:06.7]} 10... Bxg5 {[%clk 0:02:53.4]} 11. Nxg5
{[%clk 0:03:08.6]} 11... Ne7 {[%clk 0:02:54.7]} 12. O-O {[%clk 0:03:03.4]} 12...
Nd7 {[%clk 0:02:53.9]} 13. b3 {[%clk 0:02:47.7]} 13... Nf5 {[%clk 0:02:52.9]}
14. Ndf3 {[%clk 0:02:43.8]} 14... Rd8 {[%clk 0:02:49.1]} 15. Rfd1 {[%clk
0:02:30.6]} 15... Nb6 {[%clk 0:02:44.6]} 16. c5 {[%clk 0:02:24.8]} 16... Qxd3
{[%clk 0:02:40.9]} 17. Rxd3 {[%clk 0:02:26.7]} 17... Na8 {[%clk 0:02:35.3]} 18.
a4 {[%clk 0:02:26.2]} 18... Nc7 {[%clk 0:02:35.1]} 19. b4 {[%clk 0:02:25.7]}
19... a6 {[%clk 0:02:35.8]} 20. Rb1 {[%clk 0:02:21.3]} 20... Ke7 {[%clk
0:02:35.4]} 21. g3 {[%clk 0:02:15.5]} 21... f6 {[%clk 0:02:26]} 22. exf6+ {[%clk
0:02:14.9]} 22... gxf6 {[%clk 0:02:27.9]} 23. Nh3 {[%clk 0:02:14.5]} 23... Rdg8
{[%clk 0:02:26.1]} 24. Nf4 {[%clk 0:02:13.1]} 24... Kf7 {[%clk 0:02:17.9]} 25.
Re1 {[%clk 0:02:07]} 25... Rg4 {[%clk 0:02:02.2]} 26. Kf1 {[%clk 0:02:02.5]}
26... Rgg8 {[%clk 0:01:42.6]} 27. Rde3 {[%clk 0:01:59.8]} 27... Nxe3+ {[%clk
0:01:42.6]} 28. Rxe3 {[%clk 0:01:58.1]} 28... Rh6 {[%clk 0:01:40.9]} 29. Ke2
{[%clk 0:01:48.9]} 29... Re8 {[%clk 0:01:35.7]} 30. Kd3 {[%clk 0:01:49.3]} 30...
a5 {[%clk 0:01:21.7]} 31. Kc3 {[%clk 0:01:41.4]} 31... axb4+ {[%clk 0:01:20.4]}
32. Kxb4 {[%clk 0:01:43.3]} 32... Ra8 {[%clk 0:01:20.3]} 33. Re1 {[%clk
0:01:35.5]} 33... Na6+ {[%clk 0:01:13.8]} 34. Kb3 {[%clk 0:01:33.1]} 34... Nxc5+
{[%clk 0:00:58.8]} 35. dxc5 {[%clk 0:01:29.6]} 35... e5 {[%clk 0:01:00.4]} 36.
Nd3 {[%clk 0:01:27.9]} 36... e4 {[%clk 0:00:57]} 37. Nd4 {[%clk 0:01:24.9]}
37... exd3 {[%clk 0:00:56.3]} 38. Nf5 {[%clk 0:01:26]} 38... Rhh8 {[%clk
0:00:36.7]} 39. Nd6+ {[%clk 0:01:19.8]} 39... Kg6 {[%clk 0:00:32.3]} 40. Rd1
{[%clk 0:01:13.3]} 40... Rh7 {[%clk 0:00:20.5]} 41. Rxd3 {[%clk 0:01:12.6]}
41... Re7 {[%clk 0:00:21.4]} 42. Rf3 {[%clk 0:00:59.7]} 42... Ra7 {[%clk
0:00:20.5]} 43. Kb4 {[%clk 0:00:59.6]} 43... Re6 {[%clk 0:00:15.7]} 44. a5
{[%clk 0:00:50.7]} 44... Re7 {[%clk 0:00:15.8]} 45. Nc8 {[%clk 0:00:51]} 45...
Re4+ {[%clk 0:00:10.7]} 46. Kb3 {[%clk 0:00:47.8]} 46... Ra8 {[%clk 0:00:11.7]}
47. Nd6 {[%clk 0:00:46]} 47... Re1 {[%clk 0:00:07.1]} 48. Kb4 {[%clk 0:00:26.6]}
48... Rb1+ {[%clk 0:00:07.3]} 49. Kc3 {[%clk 0:00:26.1]} 49... Rxa5 {[%clk
0:00:07.1]} 50. Kc2 {[%clk 0:00:23.6]} 50... Rba1 {[%clk 0:00:06.1]} 51. Ne8
{[%clk 0:00:23.9]} 51... R5a2+ {[%clk 0:00:06.6]} 52. Kd3 {[%clk 0:00:24.2]}
52... Ra3+ {[%clk 0:00:07.8]} 53. Ke2 {[%clk 0:00:26.1]} 53... R1a2+ {[%clk
0:00:09.2]} 0

[Event "Torneo Nuevo Centro. Jornada 8"]
[Site "Chess.com"]
[Date "2020.08.07"]
[Round "8"]
[White "Serrano Requena, Guillem"]
[Black "Chofre Murcia, Adrián"]
[Result "0-1"]
[WhiteElo "1314"]
[BlackElo "1681"]
[TimeControl "180+2"]
[EndTime "12:02:30 PDT"]
[Termination "Victoria de Kelorian por jaque mate"]

1. d4 {[%clk 0:03:01.9]} 1... f5 {[%clk 0:03:00.2]} 2. Bg5 {[%clk 0:02:59.6]}
2... h6 {[%clk 0:02:59.8]} 3. Bf4 {[%clk 0:02:57.6]} 3... Nf6 {[%clk 0:02:59.1]}
4. c4 {[%clk 0:02:42.9]} 4... e6 {[%clk 0:02:59]} 5. Nf3 {[%clk 0:02:42.4]} 5...
d6 {[%clk 0:02:53.4]} 6. h3 {[%clk 0:02:42]} 6... Nc6 {[%clk 0:02:52]} 7. e3
{[%clk 0:02:40.2]} 7... Bd7 {[%clk 0:02:51.2]} 8. Nc3 {[%clk 0:02:37.1]} 8...
Be7 {[%clk 0:02:38]} 9. a3 {[%clk 0:02:36.1]} 9... Ne4 {[%clk 0:02:33.1]} 10.
Bd3 {[%clk 0:02:34.5]} 10... Nxc3 {[%clk 0:02:32.9]} 11. bxc3 {[%clk 0:02:36.2]}
11... Bf6 {[%clk 0:02:32]} 12. Nh4 {[%clk 0:02:08.5]} 12... Bxh4 {[%clk
0:02:27.4]} 13. Qh5+ {[%clk 0:02:07.9]} 13... Kf8 {[%clk 0:02:25.8]} 14. d5
{[%clk 0:02:06.3]} 14... Be8 {[%clk 0:02:21.1]} 15. Qf3 {[%clk 0:02:03.8]} 15...
e5 {[%clk 0:01:59.6]} 16. Bxe5 {[%clk 0:01:49]} 16... Nxe5 {[%clk 0:01:58]} 17.
Qxf5+ {[%clk 0:01:47.5]} 17... Bf6 {[%clk 0:01:54.9]} 18. Be4 {[%clk 0:01:42.6]}
18... Bg6 {[%clk 0:01:50.7]} 19. Qf4 {[%clk 0:01:42.3]} 19... Bxe4 {[%clk
0:01:50.4]} 20. Qxe4 {[%clk 0:01:42.5]} 20... Qe7 {[%clk 0:01:51.3]} 21. O-O
{[%clk 0:01:40.1]} 21... Re8 {[%clk 0:01:49.6]} 22. Rae1 {[%clk 0:01:26.9]}
22... Kf7 {[%clk 0:01:41.3]} 23. f4 {[%clk 0:01:21.5]} 23... Ng6 {[%clk
0:01:36.8]} 24. Qf3 {[%clk 0:01:21.1]} 24... Rhf8 {[%clk 0:01:32.2]} 25. Qh5
{[%clk 0:01:18.4]} 25... Qe4 {[%clk 0:00:56.8]} 26. f5 {[%clk 0:01:15.2]} 26...
Kg8 {[%clk 0:00:44.6]} 27. Qxg6 {[%clk 0:01:09.5]} 27... Qxc4 {[%clk 0:00:41.9]}
28. Rf4 {[%clk 0:01:08.1]} 28... Qxc3 {[%clk 0:00:38.8]} 29. Re2 {[%clk
0:01:07.2]} 29... Qc1+ {[%clk 0:00:30.4]} 30. Kh2 {[%clk 0:01:06.9]} 30... Rxe3
{[%clk 0:00:27.8]} 31. Ref2 {[%clk 0:01:07.1]} 31... Re1 {[%clk 0:00:21.4]} 32.
Rg4 {[%clk 0:01:00.3]} 32... Rh1+ {[%clk 0:00:20.7]} 33. Kg3 {[%clk 0:01:01]}
33... Qe3+ {[%clk 0:00:19.3]} 34. Rf3 {[%clk 0:01:01.6]} 34... Be5+ {[%clk
0:00:20]} 35. Kh4 {[%clk 0:00:59.9]} 35... Qe1+ {[%clk 0:00:15.6]} 36. Rfg3
{[%clk 0:00:50]} 36... Bxg3+ {[%clk 0:00:15.4]} 37. Rxg3 {[%clk 0:00:51]} 37...
Qe5 {[%clk 0:00:15.3]} 38. Rg4 {[%clk 0:00:32.1]} 38... Qf6+ {[%clk 0:00:14.7]}
39. Kg3 {[%clk 0:00:26.3]} 39... Qxg6 {[%clk 0:00:13]} 40. fxg6 {[%clk
0:00:27.1]} 40... Rf6 {[%clk 0:00:13.9]} 41. Kh4 {[%clk 0:00:24.2]} 41... Re1
{[%clk 0:00:12.5]} 42. Kh5 {[%clk 0:00:23]} 42... Re5+ {[%clk 0:00:13.3]} 43.
Kh4 {[%clk 0:00:23.4]} 43... Rxd5 {[%clk 0:00:13.7]} 44. Re4 {[%clk 0:00:21.6]}
44... Kf8 {[%clk 0:00:14.2]} 45. Rg4 {[%clk 0:00:19.9]} 45... Rdf5 {[%clk
0:00:15.1]} 46. Kg3 {[%clk 0:00:19.9]} 46... h5 {[%clk 0:00:14.6]} 47. Re4
{[%clk 0:00:19.9]} 47... Re5 {[%clk 0:00:13.4]} 48. Rc4 {[%clk 0:00:19.1]} 48...
Rxg6+ {[%clk 0:00:14.3]} 49. Kh2 {[%clk 0:00:19.3]} 49... c6 {[%clk 0:00:15.3]}
50. Rc2 {[%clk 0:00:19.1]} 50... Reg5 {[%clk 0:00:15.6]} 51. g4 {[%clk
0:00:17.8]} 51... hxg4 {[%clk 0:00:16]} 52. hxg4 {[%clk 0:00:17.4]} 52... Rxg4
{[%clk 0:00:17.1]} 53. Rf2+ {[%clk 0:00:11.2]} 53... Rf6 {[%clk 0:00:17.7]} 54.
Re2 {[%clk 0:00:10.2]} 54... Rh6# {[%clk 0:00:18.2]} 0

[Event "Torneo Nuevo Centro. Jornada 8"]
[Site "Chess.com"]
[Date "2020.08.07"]
[Round "8"]
[White "Yuste Valenzuela, Alejandro"]
[Black "Roca Cruz, Rafael"]
[Result "1-0"]
[WhiteElo "1868"]
[BlackElo "1787"]
[TimeControl "180+2"]
[EndTime "12:02:53 PDT"]
[Termination "Victoria de alejandrito290 por abandono"]

1. e4 {[%clk 0:03:01.9]} 1... c5 {[%clk 0:03:01]} 2. Nf3 {[%clk 0:03:02.1]} 2...
e6 {[%clk 0:03:02.4]} 3. d4 {[%clk 0:03:03.1]} 3... cxd4 {[%clk 0:03:04.3]} 4.
Nxd4 {[%clk 0:03:05]} 4... Nf6 {[%clk 0:03:05.8]} 5. Nc3 {[%clk 0:03:04.8]} 5...
Bb4 {[%clk 0:03:07.4]} 6. Bd3 {[%clk 0:03:04.2]} 6... d5 {[%clk 0:03:05.1]} 7.
exd5 {[%clk 0:03:01.9]} 7... Nxd5 {[%clk 0:03:05.7]} 8. Bd2 {[%clk 0:03:01.5]}
8... Nxc3 {[%clk 0:03:04.4]} 9. Bxc3 {[%clk 0:02:59]} 9... Bxc3+ {[%clk
0:02:52.3]} 10. bxc3 {[%clk 0:03:00.9]} 10... O-O {[%clk 0:02:53.3]} 11. O-O
{[%clk 0:03:00.3]} 11... a6 {[%clk 0:02:44.7]} 12. Qf3 {[%clk 0:02:50.4]} 12...
Nd7 {[%clk 0:02:42]} 13. Qg3 {[%clk 0:02:32.3]} 13... Qa5 {[%clk 0:02:12.7]} 14.
Rad1 {[%clk 0:02:24.7]} 14... Nf6 {[%clk 0:01:17.6]} 15. Nb3 {[%clk 0:01:55.5]}
15... Qa4 {[%clk 0:01:05.5]} 16. h3 {[%clk 0:01:50.5]} 16... b6 {[%clk
0:00:15.2]} 17. Rfe1 {[%clk 0:01:17.8]} 17... Bb7 {[%clk 0:00:14.2]} 18. f4
{[%clk 0:00:54]} 18... Rac8 {[%clk 0:00:12.3]} 19. Re5 {[%clk 0:00:40.8]} 19...
Qc6 {[%clk 0:00:09.9]} 20. Rg5 {[%clk 0:00:39.1]} 20... g6 {[%clk 0:00:07.4]}
21. h4 {[%clk 0:00:12.5]} 21... Nh5 {[%clk 0:00:08.4]} 22. Rxh5 {[%clk
0:00:12.2]} 22... Qxg2+ {[%clk 0:00:09.4]} 23. Qxg2 {[%clk 0:00:10.8]} 23...
Bxg2 {[%clk 0:00:10.5]} 24. Kxg2 {[%clk 0:00:12.7]} 24... gxh5 {[%clk
0:00:10.8]} 25. c4 {[%clk 0:00:12.3]} 25... Rfd8 {[%clk 0:00:10.9]} 26. Rg1
{[%clk 0:00:12.8]} 26... Kf8 {[%clk 0:00:11.6]} 27. Kf3 {[%clk 0:00:13.9]} 27...
a5 {[%clk 0:00:12.4]} 28. Rg5 {[%clk 0:00:13.3]} 28... a4 {[%clk 0:00:11.3]} 29.
Nd2 {[%clk 0:00:13.7]} 29... Rc5 {[%clk 0:00:07.9]} 30. Rxc5 {[%clk 0:00:13.1]}
30... bxc5 {[%clk 0:00:09.2]} 31. Ne4 {[%clk 0:00:14.7]} 31... Rb8 {[%clk
0:00:09.3]} 32. Nxc5 {[%clk 0:00:13.9]} 32... Rb2 {[%clk 0:00:08.2]} 33. a3
{[%clk 0:00:14.1]} 33... Ra2 {[%clk 0:00:08.2]} 34. Nxa4 {[%clk 0:00:14.9]}
34... Rxa3 {[%clk 0:00:09.4]} 35. Nc5 {[%clk 0:00:16.4]} 35... Ra1 {[%clk
0:00:09]} 36. Ne4 {[%clk 0:00:17.3]} 36... Ke7 {[%clk 0:00:09.4]} 37. Ng5 {[%clk
0:00:17.6]} 37... Rh1 {[%clk 0:00:08.1]} 38. Kg3 {[%clk 0:00:15.8]} 38... Rg1+
{[%clk 0:00:08.9]} 39. Kh2 {[%clk 0:00:13.9]} 39... Rg4 {[%clk 0:00:08.3]} 40.
Kh3 {[%clk 0:00:09.8]} 40... Rxf4 {[%clk 0:00:07.6]} 41. Nxh7 {[%clk 0:00:09.7]}
41... f6 {[%clk 0:00:08.7]} 42. Kg3 {[%clk 0:00:05.1]} 42... Rd4 {[%clk
0:00:05.9]} 43. Kh3 {[%clk 0:00:04.5]} 43... Kf7 {[%clk 0:00:05.5]} 44. Kg3
{[%clk 0:00:02.6]} 44... Kg7 {[%clk 0:00:05.1]} 45. Kh3 {[%clk 0:00:04]} 45...
Kf7 {[%clk 0:00:05.1]} 46. Kg3 {[%clk 0:00:05.3]} 46... Kg7 {[%clk 0:00:06.2]}
47. Kh3 {[%clk 0:00:06.9]} 47... Rf4 {[%clk 0:00:07.4]} 48. Kg3 {[%clk
0:00:07.5]} 48... Rxc4 {[%clk 0:00:09.3]} 49. Bxc4 {[%clk 0:00:07.4]} 49... Kxh7
{[%clk 0:00:10.5]} 50. Bxe6 {[%clk 0:00:08]} 1